[Event "Sparkassen Open 2018"]
[Site "Heusenstamm"]
[Date "2018.11.25"]
[Round "6"]
[White "Barski, Radoslaw"]
[Black "Gschnitzer, Adrian"]
[Result "1-0"]
[ECO "B31"]
[WhiteElo "2459"]
[BlackElo "2365"]
[Annotator "RC"]
[PlyCount "79"]
[EventDate "2018.11.22"]
[EventType "swiss"]
[EventCountry "GER"]
[SourceTitle "playchess.com"]
[Source "ChessBase"]
[SourceQuality "1"]
[TimeControl "40/5400+30:1800+30"]

1. e4 {[%emt 0:00:00]} c5 {[%emt 0:00:00]} 2. Nf3 {[%emt 0:00:00]} Nc6 {[%emt 0:00:00]} 3. Bb5 {[%emt 0:00:02]} g6 {[%emt 0:00:00]} 4. Bxc6 {[%emt 0:00:18]} bxc6 {[%emt 0:00:00]} 5. d4 {[%emt 0:00:25]} Ba6 {[%emt 0:00:15]} 6. dxc5 {[%emt 0:00:44]} Bg7 {[%emt 0:01:06]} 7. Nbd2 {[%emt 0:00:57]} Qa5 {[%emt 0:02:59]} 8. Rb1 {[%emt 0:00:37]} Qxc5 {[%emt 0:16:14]} 9. b4 {[%emt 0:00:21]} Qb6 {[%emt 0:04:40]} 10. c4 {[%emt 0:01:21]} d6 {[%emt 0:02:31]} 11. O-O {[%emt 0:02:44]} Nf6 {[%emt 0:00:36]} 12. Bb2 {[%emt 0:09:37]} O-O {[%emt 0:00:59]} 13. a4 {[%emt 0:04:29]} c5 {[%emt 0:04:17]} 14. b5 {[%emt 0:02:29]} Bb7 {[%emt 0:01:03]} 15. Qc2 {[%emt 0:00:05]} Rfd8 {[%emt 0:01:43]} 16. Rfe1 {[%emt 0:03:54]} Nh5 {[%emt 0:06:38]} 17. Bxg7 {[%emt 0:17:19]} Nxg7 {[%emt 0:01:03]} 18. Nf1 {[%emt 0:01:44]} e5 {[%emt 0:19:54]} 19. Qd2 {[%emt 0:08:23]} Qc7 {[%emt 0:08:35]} 20. a5 {[%emt 0:05:41]} f5 {[%emt 0:00:20]} 21. Ng5 {[%emt 0:08:02]} h6 {[%emt 0:01:18]} 22. a6 {[%emt 0:02:35]} hxg5 {[%emt 0:00:26]} 23. axb7 {[%emt 0:00:10]} Qxb7 {[%emt 0:00:11]} 24. Qxg5 {[%emt 0:01:07]} Kf7 {[%emt 0:01:13]} 25. exf5 {[%emt 0:04:24]} Nxf5 {[%emt 0:00:58]} 26. Ne3 {[%emt 0:03:57]} Qe7 {[%emt 0:00:05]} 27. Qg4 {[%emt 0:00:12]} Qe6 {[%emt 0:06:08]} 28. Nd5 {[%emt 0:03:07]} Rd7 {[%emt 0:01:33]} 29. Qf3 {[%emt 0:05:48]} Kg7 {[%emt 0:04:18]} 30. b6 {[%emt 0:07:20]} Rb8 {[%emt 0:03:37]} 31. Nc7 {[%emt 0:01:00]} Qxc4 {[%emt 0:00:08]} 32. bxa7 {[%emt 0:00:50]} Rxb1 {[%emt 0:00:08]} 33. Rxb1 {[%emt 0:00:34]} Nd4 {[%emt 0:05:03]} 34. Ne8+ {[%emt 0:03:53]} Kg8 {[%emt 0:00:41]} 35. Nf6+ {[%emt 0:00:35]} Kg7 {[%emt 0:00:02]} 36. Ne8+ {[%emt 0:00:56]} Kg8 {[%emt 0:00:01]} 37. a8=Q {[%emt 0:00:09]} Nxf3+ {[%emt 0:00:56]} 38. Qxf3 {[%emt 0:00:04]} Qc2 {[%emt 0:01:29]} 39. Rf1 {[%emt 0:02:18]} Rf7 {[%emt 0:01:34]} 40. Qd5 {[%emt 0:00:19]} 1-0

[Event "Sparkassen Open 2018"]
[Site "Heusenstamm"]
[Date "2018.11.25"]
[Round "6"]
[White "Gritsak, Orest"]
[Black "Enchev, Ivajlo"]
[Result "1-0"]
[ECO "A13"]
[WhiteElo "2457"]
[BlackElo "2496"]
[Annotator "ChessBase"]
[PlyCount "103"]
[EventDate "2018.11.22"]
[EventType "swiss"]
[EventCountry "GER"]
[SourceTitle "playchess.com"]
[Source "ChessBase"]
[SourceQuality "1"]
[TimeControl "40/5400+30:1800+30"]

1. c4 {[%emt 0:00:00]} e6 {[%emt 0:00:00]} 2. Nf3 {[%emt 0:01:45]} d5 {[%emt 0:00:00]} 3. e3 {[%emt 0:00:59]} Nf6 {[%emt 0:00:26]} 4. b3 {[%emt 0:00:15]} a6 {[%emt 0:02:37]} 5. Bb2 {[%emt 0:03:58]} c5 {[%emt 0:01:09]} 6. a3 {[%emt 0:08:41]} Nc6 {[%emt 0:02:08]} 7. cxd5 {[%emt 0:02:46]} exd5 {[%emt 0:00:10]} 8. d4 {[%emt 0:00:13]} Bg4 {[%emt 0:03:29]} 9. Be2 {[%emt 0:02:07]} Bd6 {[%emt 0:08:02]} 10. dxc5 {[%emt 0:06:00]} Bxc5 {[%emt 0:00:06]} 11. O-O {[%emt 0:03:32]} O-O {[%emt 0:01:46]} 12. Nc3 {[%emt 0:00:16]} Ba7 {[%emt 0:03:49]} 13. b4 {[%emt 0:05:42]} Qd6 {[%emt 0:12:40]} 14. h3 {[%emt 0:04:55]} Bxf3 {[%emt 0:07:23]} 15. Bxf3 {[%emt 0:00:05]} Rad8 {[%emt 0:00:13]} 16. Ne2 {[%emt 0:04:08]} Ne5 {[%emt 0:04:31]} 17. Ng3 {[%emt 0:03:51]} Bb8 {[%emt 0:08:17]} 18. Re1 {[%emt 0:09:20]} Nc4 {[%emt 0:03:06]} 19. Bd4 {[%emt 0:10:44]} Rfe8 {[%emt 0:00:21]} 20. Re2 {[%emt 0:04:48]} Ne4 {[%emt 0:03:42]} 21. Nf1 {[%emt 0:01:01]} Re6 {[%emt 0:07:40]} 22. Rc2 {[%emt 0:01:35]} b5 {[%emt 0:00:46]} 23. g3 {[%emt 0:02:17]} Rg6 {[%emt 0:04:56]} 24. Bg2 {[%emt 0:00:10]} Qe6 {[%emt 0:01:36]} 25. a4 {[%emt 0:03:10]} Bd6 {[%emt 0:01:49]} 26. axb5 {[%emt 0:00:23]} axb5 {[%emt 0:00:01]} 27. Rca2 {[%emt 0:01:21]} h6 {[%emt 0:01:55]} 28. Ra8 {[%emt 0:03:25]} Rxa8 {[%emt 0:00:16]} 29. Rxa8+ {[%emt 0:00:01]} Kh7 {[%emt 0:00:09]} 30. h4 {[%emt 0:02:08]} Qf5 {[%emt 0:07:07]} 31. Qf3 {[%emt 0:00:20]} Qd7 {[%emt 0:02:44]} 32. Ra7 {[%emt 0:09:26]} Bc7 {[%emt 0:00:05]} 33. Qh5 {[%emt 0:01:14]} Rc6 {[%emt 0:01:51]} 34. Bxe4+ {[%emt 0:00:42]} dxe4 {[%emt 0:00:05]} 35. Qxb5 {[%emt 0:00:04]} Nd2 {[%emt 0:00:23]} 36. Nxd2 {[%emt 0:01:04]} Rc1+ {[%emt 0:01:01]} 37. Qf1 {[%emt 0:00:02]} Qc6 {[%emt 0:01:22]} 38. b5 {[%emt 0:01:24]} Qc2 {[%emt 0:00:35]} 39. Qxc1 {[%emt 0:00:58]} Qxc1+ {[%emt 0:00:05]} 40. Nf1 {[%emt 0:00:03]} f6 {[%emt 0:01:37]} 41. Bxf6 {[%emt 0:31:44]} gxf6 {[%emt 0:30:13]} 42. b6 {[%emt 0:00:04]} Kg6 {[%emt 0:00:04]} 43. Rxc7 {[%emt 0:00:22]} Qb1 {[%emt 0:02:41]} 44. b7 {[%emt 0:03:40]} Kh5 {[%emt 0:00:14]} 45. Rg7 {[%emt 0:01:03]} f5 {[%emt 0:00:14]} 46. Kg2 {[%emt 0:00:32]} Qb2 {[%emt 0:01:27]} 47. Rf7 {[%emt 0:00:00]} Kg6 {[%emt 0:00:00]} 48. Rd7 {[%emt 0:00:00]} Kh5 {[%emt 0:00:00]} 49. Nd2 {[%emt 0:00:00]} Kg4 {[%emt 0:00:00]} 50. Nc4 {[%emt 0:00:00]} Qb1 {[%emt 0:00:00]} 51. Ne5+ {[%emt 0:00:00]} Kh5 {[%emt 0:00:00]} 52. Rf7 {[%emt 0:00:00]} 1-0

[Event "Sparkassen Open 2018"]
[Site "Heusenstamm"]
[Date "2018.11.25"]
[Round "6"]
[White "Gutman, Lev"]
[Black "Schulze, Lara"]
[Result "1-0"]
[ECO "A05"]
[WhiteElo "2434"]
[BlackElo "2167"]
[Annotator "NA"]
[PlyCount "108"]
[EventDate "2018.11.22"]
[EventType "swiss"]
[EventCountry "GER"]
[SourceTitle "playchess.com"]
[Source "ChessBase"]
[SourceQuality "1"]
[TimeControl "40/5400+30:1800+30"]

1. Nf3 {[%emt 0:00:00]} Nf6 {[%emt 0:00:00]} 2. g3 {[%emt 0:00:00]} b5 {[%emt 0:00:00]} 3. Bg2 {[%emt 0:00:00]} Bb7 {[%emt 0:00:00]} 4. O-O {[%emt 0:00:00]} e6 {[%emt 0:00:00]} 5. c3 {[%emt 0:00:06]} c5 {[%emt 0:00:06] LiveBook: 67 Games} 6. d4 {[%emt 0:00:10]} Be7 {[%emt 0:00:39]} 7. Na3 {[%emt 0:05:48] A46: 1 d4 Nf6 2 Nf3 e6: Torre, London and Colle Systems} (7. Bg5 Na6 8. e3 O-O 9. Nbd2 h6 10. Bxf6 Bxf6 11. Qe2 Qb6 12. a4 b4 13. a5 Qc7 14. Rfc1 bxc3 15. bxc3 Rfc8 16. Ne1 Bxg2 17. Kxg2 {1-0 (55) Georgiev,K (2623)-Fedorchuk,S (2648) Riadh 2017}) 7... a6 {[%emt 0:09:12]} 8. Nc2 {[%emt 0:00:06]} O-O {[%emt 0:01:01]} 9. a4 {[%emt 0:00:31]} d6 $146 {[%emt 0:02:27]} ({Predecessor:} 9... bxa4 10. Rxa4 d5 11. dxc5 Ne4 12. Be3 Nd7 13. Ra2 Ndxc5 14. Ne5 Qc7 {½-½ (46) Mezentsev,I (2220)-Virovlansky,S (2425) Golden Sands 2015}) 10. axb5 {[%emt 0:15:30]} axb5 {[%emt 0:00:09]} 11. Rxa8 {[%emt 0:00:03]} Bxa8 {[%emt 0:00:06]} 12. Na3 {[%emt 0:00:02]} (12. dxc5 $11 dxc5 13. Qxd8 Rxd8 14. Ne5) 12... b4 {[%emt 0:06:19]} 13. cxb4 {[%emt 0:18:21]} cxb4 {[%emt 0:01:13]} 14. Nc2 {[%emt 0:00:02]} Bxf3 {[%emt 0:04:13]} (14... Qb6 $15) 15. Bxf3 {[%emt 0:00:19]} d5 {[%emt 0:00:11]} 16. Qd3 {[%emt 0:12:49]} Qb6 {[%emt 0:06:54]} 17. Be3 {[%emt 0:00:08]} Rc8 {[%emt 0:19:45]} 18. Ra1 {[%emt 0:00:09]} Nc6 {[%emt 0:02:42]} 19. Qa6 {[%emt 0:03:02]} Qxa6 {[%emt 0:01:56]} 20. Rxa6 {[%emt 0:00:02]} Nb8 {[%emt 0:01:57]} 21. Ra8 {[%emt 0:00:07]} Nfd7 {[%emt 0:01:02]} 22. Ne1 {[%emt 0:01:32]} Nb6 {[%emt 0:02:45]} 23. Ra7 {[%emt 0:00:03]} Nc6 {[%emt 0:02:21]} 24. Rb7 {[%emt 0:00:53]} Nc4 {[%emt 0:10:50]} 25. Nd3 {[%emt 0:00:03]} Kf8 {[%emt 0:01:30]} 26. Bh5 {[%emt 0:09:01]} g6 {[%emt 0:04:35]} 27. Bg4 {[%emt 0:01:53]} Ra8 {[%emt 0:02:49]} 28. Bh6+ {[%emt 0:07:32]} Ke8 {[%emt 0:00:15]} 29. e3 {[%emt 0:00:21]} N6a5 $11 {[%emt 0:10:12]} (29... Ra2 $15) 30. Rb5 {[%emt 0:05:48]} Nd6 {[%emt 0:03:00]} 31. Rxb4 {[%emt 0:03:19]} Nf5 {[%emt 0:00:12]} 32. Ra4 {[%emt 0:00:13]} Nxh6 {[%emt 0:00:06]} 33. Be2 {[%emt 0:00:01]} Ra7 {[%emt 0:01:39]} 34. Ne5 {[%emt 0:00:30]} f6 {[%emt 0:01:01]} 35. Bb5+ {[%emt 0:00:18]} Kd8 {[%emt 0:00:32]} 36. Rxa5 {[%emt 0:01:51]} Rxa5 {[%emt 0:02:04]} 37. Nc6+ {[%emt 0:00:01]} Kc7 {[%emt 0:00:46]} 38. Nxa5 {[%emt 0:00:03]} Kb6 {[%emt 0:00:53]} 39. Nc6 {[%emt 0:00:02]} Kxb5 {[%emt 0:01:20]} 40. Nxe7 {[%emt 0:00:02]} Kb4 {[%emt 0:00:08]} 41. Nc6+ {[%emt 0:39:46]} Kb3 {[%emt 0:30:30]} 42. Nd8 {[%emt 0:01:45]} e5 {[%emt 0:00:52]} 43. Ne6 {[%emt 0:06:48]} Kxb2 {[%emt 0:00:00]} 44. Nc7 {[%emt 0:00:00]} exd4 {[%emt 0:00:00]} 45. exd4 {[%emt 0:00:00]} Nf5 {[%emt 0:00:00]} 46. Nxd5 {[%emt 0:00:00]} Nxd4 {[%emt 0:00:00]} 47. Nxf6 {[%emt 0:00:00]} h5 {[%emt 0:00:00]} 48. h4 {[%emt 0:00:00]} Nf5 {[%emt 0:00:00]} 49. Kg2 {[%emt 0:00:00]} Kc3 {[%emt 0:00:00]} 50. Kf3 {[%emt 0:00:00]} Kd4 {[%emt 0:00:00]} 51. Kf4 {[%emt 0:00:00]} Ne7 {[%emt 0:00:00]} 52. Nd7 {[%emt 0:00:00]} Kd5 {[%emt 0:00:00]} 53. Nf8 {[%emt 0:00:00]} Kd6 {[%emt 0:00:00]} 54. Kg5 {[%emt 0:00:00]} Kd5 1-0

[Event "Sparkassen Open 2018"]
[Site "Heusenstamm"]
[Date "2018.11.25"]
[Round "6"]
[White "Fruebing, Stefan"]
[Black "Kersten, Uwe"]
[Result "1/2-1/2"]
[ECO "B51"]
[WhiteElo "2406"]
[BlackElo "2233"]
[Annotator "NA"]
[PlyCount "28"]
[EventDate "2018.11.22"]
[EventType "swiss"]
[EventCountry "GER"]
[SourceTitle "playchess.com"]
[Source "ChessBase"]
[SourceQuality "1"]
[TimeControl "40/5400+30:1800+30"]

{[%evp 8,20,12,23,42,27,25,14,14,8,13,3,17,30,14]} 1. e4 {[%emt 0:00:00]} c5 {[%emt 0:15:59]} 2. Nf3 {[%emt 0:00:00]} d6 {[%emt 0:00:25]} 3. Bb5+ {[%emt 0:00:00]} Nd7 {[%emt 0:06:10]} 4. O-O {[%emt 0:00:13]} Ngf6 {[%emt 0:00:34]} 5. Re1 {[%emt 0:00:10]} a6 {[%emt 0:01:24]} 6. Bd3 {[%emt 0:00:16]} Qc7 {[%emt 0:06:51] LiveBook: 13 Games} 7. a4 {[%emt 0:09:31]} b6 {[%emt 0:01:56]} 8. b3 {[%emt 0:11:02]} Bb7 {[%emt 0:06:30]} 9. Bb2 {[%emt 0:00:31]} e5 {[%emt 0:01:57]} 10. Nc3 {[%emt 0:05:32]} g6 $11 {[%emt 0:03:52]} 11. Bc4 {[%emt 0:04:07]} Bg7 {[%emt 0:00:22]} 12. Nd5 {[%emt 0:11:12]} Nxd5 {[%emt 0:01:56]} 13. Bxd5 {[%emt 0:00:16]} Bxd5 {[%emt 0:04:04]} 14. exd5 {[%emt 0:00:01]} O-O 1/2-1/2

[Event "Sparkassen Open 2018"]
[Site "Heusenstamm"]
[Date "2018.11.25"]
[Round "6"]
[White "Hacker, Jonas"]
[Black "Boos, Markus"]
[Result "1-0"]
[ECO "B33"]
[WhiteElo "2350"]
[BlackElo "2166"]
[Annotator "NA"]
[PlyCount "109"]
[EventDate "2018.11.22"]
[EventType "swiss"]
[EventCountry "GER"]
[SourceTitle "playchess.com"]
[Source "ChessBase"]
[SourceQuality "1"]
[TimeControl "40/5400+30:1800+30"]

1. e4 {[%emt 0:00:00]} c5 {[%emt 0:00:00]} 2. Nf3 {[%emt 0:00:00]} Nc6 {[%emt 0:00:00]} 3. d4 {[%emt 0:00:00]} cxd4 {[%emt 0:00:00]} 4. Nxd4 {[%emt 0:00:00]} Nf6 {[%emt 0:00:00]} 5. Nc3 {[%emt 0:00:01]} e5 {[%emt 0:00:00]} 6. Ndb5 {[%emt 0:00:05]} d6 {[%emt 0:00:00]} 7. Bg5 {[%emt 0:00:07]} a6 {[%emt 0:00:16]} 8. Na3 {[%emt 0:00:03]} b5 {[%emt 0:00:10]} 9. Bxf6 {[%emt 0:00:13]} gxf6 {[%emt 0:00:02]} 10. Nd5 {[%emt 0:00:17]} Bg7 {[%emt 0:00:20]} 11. Bd3 {[%emt 0:00:27]} Ne7 {[%emt 0:01:09]} 12. Nxe7 {[%emt 0:01:21]} Qxe7 {[%emt 0:00:05]} 13. c4 {[%emt 0:01:04]} f5 {[%emt 0:04:05]} 14. O-O {[%emt 0:02:13]} ({Much weaker is} 14. cxb5 d5 $15) 14... O-O {[%emt 0:06:29]} 15. Qh5 {[%emt 0:01:21]} Rb8 {[%emt 0:10:54]} 16. exf5 {[%emt 0:11:46]} e4 {[%emt 0:01:44]} 17. Rae1 {[%emt 0:00:38]} Bb7 {[%emt 0:05:17]} 18. Qg4 {[%emt 0:12:24]} bxc4 {[%emt 0:06:14] LiveBook: 3 Games B33: Sicilian: Pelikan and Sveshnikov Variations} (18... Rfe8 19. cxb5 d5 20. bxa6 Bc6 21. b3 Kh8 22. Nc2 Bc3 23. Qh3 Qf6 24. Be2 d4 25. Bc4 Rg8 26. g3 Rbe8 27. Rd1 e3 28. fxe3 dxe3 29. Be2 Re4 30. Qg2 Re7 31. Qh3 Re4 32. Qg2 Re7 33. Qh3 {½-½ (33) Shirov,A (2723)-Carlsen,M (2810) Wijk aan Zee 2010}) 19. Bxe4 {[%emt 0:03:47]} Bxe4 {[%emt 0:01:38]} (19... h5 $142 20. f6 Qxf6 21. Qxh5 Bxe4 $14 22. Rxe4 Rxb2) 20. Rxe4 {[%emt 0:03:03]} Qf6 {[%emt 0:00:10]} 21. Rxc4 {[%emt 0:11:00]} Rxb2 {[%emt 0:01:17]} 22. Rc6 {[%emt 0:04:41]} Qd4 $146 {[%emt 0:05:32]} ({Predecessor:} 22... Rxa2 23. Rxa6 Kh8 24. Qc4 Qb2 25. Nb1 Rxa6 26. Qxa6 {½-½ (56) Mekhitarian,K (2421)-Zambrana,O (2425) Santos 2006}) 23. Qg3 {[%emt 0:04:02]} Qe5 {[%emt 0:03:27]} 24. Rxd6 {[%emt 0:11:10]} Qxg3 {[%emt 0:01:07]} 25. hxg3 {[%emt 0:00:20]} Rc8 {[%emt 0:08:36]} 26. Rfd1 {[%emt 0:03:51]} Bc3 {[%emt 0:07:28]} 27. Rc1 {[%emt 0:05:50]} Rc7 {[%emt 0:01:08]} 28. Rxa6 {[%emt 0:07:03]} Rxa2 {[%emt 0:01:42]} 29. Nb5 {[%emt 0:00:36]} Rxa6 {[%emt 0:00:53]} 30. Nxc7 {[%emt 0:00:12]} Ra3 {[%emt 0:04:59]} 31. Nb5 {[%emt 0:04:06]} Ra1 {[%emt 0:00:07]} 32. Rxa1 {[%emt 0:00:05]} Bxa1 {[%emt 0:00:05]} 33. Nd6 {[%emt 0:00:12]} Kg7 {[%emt 0:07:06]} 34. Ne4 {[%emt 0:00:10]} Bd4 {[%emt 0:00:16]} (34... Be5 $142 35. g4 h6) 35. g4 $18 {[%emt 0:00:25]} Be5 {[%emt 0:02:30]} 36. f3 {[%emt 0:00:18]} Bd4+ {[%emt 0:02:35]} 37. Kf1 {[%emt 0:00:09]} Be5 {[%emt 0:04:12]} 38. Ke2 {[%emt 0:00:09]} Bd4 {[%emt 0:00:06]} 39. Kd3 {[%emt 0:00:04]} Be5 {[%emt 0:00:15]} 40. Kc4 {[%emt 0:00:06]} Bb2 {[%emt 0:00:07]} 41. Kd5 {[%emt 0:30:10]} Ba3 {[%emt 0:30:30]} 42. Kc6 {[%emt 0:00:44]} Bb4 {[%emt 0:02:27]} 43. Kd7 {[%emt 0:00:06]} Ba3 {[%emt 0:00:09]} 44. Ke8 {[%emt 0:00:17]} h6 {[%emt 0:00:08]} 45. Ng3 {[%emt 0:01:00]} Bb2 {[%emt 0:02:27]} 46. Nh5+ {[%emt 0:01:12]} Kg8 {[%emt 0:00:01]} 47. Kd7 {[%emt 0:04:57]} Bd4 {[%emt 0:00:33]} 48. Kd6 {[%emt 0:00:21]} Kf8 {[%emt 0:03:05]} 49. Kd5 {[%emt 0:00:36]} Bc3 {[%emt 0:00:06]} 50. f6 {[%emt 0:00:40]} Ke8 {[%emt 0:00:51]} 51. Ke4 {[%emt 0:00:57]} Kd7 {[%emt 0:00:27]} 52. Kf5 {[%emt 0:00:01]} Kd6 {[%emt 0:01:39]} 53. Ng3 {[%emt 0:00:10]} Be5 {[%emt 0:00:38]} 54. Ne4+ {[%emt 0:00:20]} Kd5 {[%emt 0:00:02]} 55. g5 {[%emt 0:00:52]} 1-0

[Event "Sparkassen Open 2018"]
[Site "Heusenstamm"]
[Date "2018.11.25"]
[Round "6"]
[White "Euler, Gerd"]
[Black "Henrich, David"]
[Result "0-1"]
[ECO "B07"]
[WhiteElo "2297"]
[BlackElo "2141"]
[Annotator "NA"]
[PlyCount "168"]
[EventDate "2018.11.22"]
[EventType "swiss"]
[EventCountry "GER"]
[SourceTitle "playchess.com"]
[Source "ChessBase"]
[SourceQuality "1"]
[TimeControl "40/5400+30:1800+30"]

1. e4 {[%emt 0:01:29]} d6 {[%emt 0:00:00]} 2. d4 {[%emt 0:00:04]} Nf6 {[%emt 0:00:00]} 3. Nc3 {[%emt 0:00:03]} Nbd7 {[%emt 0:00:00]} 4. Nf3 {[%emt 0:00:03]} e5 {[%emt 0:00:00]} 5. g4 {[%emt 0:00:02] C41: Philidor Defence} (5. Bc4 Be7 6. a4 O-O 7. O-O c6 8. Re1 b6 9. h3 a6 10. Ba2 Rb8 11. Be3 b5 12. axb5 axb5 13. b4 Bb7 14. Bb3 exd4 15. Nxd4 d5 16. exd5 Bxb4 17. Bd2 cxd5 18. Ncxb5 Bxd2 19. Qxd2 {½-½ (30) Kryvoruchko,Y (2705)-Laznicka,V (2671) Brest 2018}) 5... Nxg4 {[%emt 0:01:43]} 6. Rg1 {[%emt 0:04:45]} exd4 {[%emt 0:05:11] LiveBook: 42 Games} 7. Bg5 {[%emt 0:03:24]} Be7 {[%emt 0:12:29]} (7... f6 $11 {remains equal.} 8. Nxd4 Nxf2) 8. Bxe7 {[%emt 0:00:18]} Qxe7 {[%emt 0:00:03] [#]} 9. Nd5 $1 {[%emt 0:00:06]} Qxe4+ {[%emt 0:01:19] Double Attack} 10. Qe2 {[%emt 0:00:04]} Qxe2+ {[%emt 0:01:15]} 11. Bxe2 {[%emt 0:00:09]} Kd8 {[%emt 0:18:57]} ({Predecessor:} 11... Nge5 12. Nxc7+ Kd8 13. Nxa8 {1-0 (21) Blandon Villa,D (2099)-Puche,E Barranquilla 2011}) 12. Rxg4 {[%emt 0:01:09] Double Attack} c6 {[%emt 0:05:32]} 13. Nf4 {[%emt 0:07:48]} ({Reject} 13. Rxd4 $6 cxd5 14. Rxd5 Kc7 $11) 13... g6 {[%emt 0:02:11]} 14. Nxd4 {[%emt 0:00:11]} Re8 {[%emt 0:01:11]} 15. O-O-O {[%emt 0:01:32]} Nb6 {[%emt 0:06:20]} 16. Rg3 {[%emt 0:00:53]} Re4 {[%emt 0:00:28]} 17. Rf3 {[%emt 0:20:29]} Bg4 {[%emt 0:02:33]} 18. Rg3 {[%emt 0:03:47]} Bc8 {[%emt 0:00:05]} 19. Rf3 {[%emt 0:03:20]} Bg4 {[%emt 0:01:15]} 20. Ng2 Bxf3 {[%emt 0:08:34]} 21. Bxf3 {[%emt 0:00:13]} Re5 {[%emt 0:02:44]} 22. Ne3 $15 {[%emt 0:00:03]} ({White should try} 22. Bxc6 $1 $11 bxc6 23. Nxc6+ Ke8 24. Nxe5 dxe5 25. Ne3) 22... Kc7 {[%emt 0:03:53]} 23. Ng4 {[%emt 0:00:42]} Re7 {[%emt 0:02:10]} 24. b3 {[%emt 0:00:18]} Nd7 {[%emt 0:00:39]} 25. Bg2 {[%emt 0:00:50]} Rae8 {[%emt 0:03:52]} 26. Kd2 {[%emt 0:00:06]} Re4 {[%emt 0:01:41]} 27. Bxe4 {[%emt 0:18:19]} Rxe4 {[%emt 0:00:01]} 28. Nxc6 {[%emt 0:00:18]} bxc6 {[%emt 0:00:43]} 29. Ne3 {[%emt 0:00:03]} Ne5 {[%emt 0:01:53]} 30. Rh1 {[%emt 0:01:44]} Rh4 {[%emt 0:00:40]} 31. Nf1 {[%emt 0:00:26]} Rf4 {[%emt 0:01:59]} 32. Ke2 {[%emt 0:00:22]} g5 {[%emt 0:03:01]} 33. c4 {[%emt 0:06:32]} Nf3 {[%emt 0:03:11]} 34. Ne3 {[%emt 0:01:46]} Nd4+ {[%emt 0:00:49]} 35. Kd3 {[%emt 0:00:07]} Ne6 {[%emt 0:00:47]} 36. Ke2 {[%emt 0:00:16]} Nd4+ {[%emt 0:00:18]} 37. Kd3 {[%emt 0:00:01]} Ne6 {[%emt 0:00:10]} 38. Ke2 {[%emt 0:00:05]} Rh4 {[%emt 0:03:39]} 39. f3 {[%emt 0:00:45]} Nd4+ {[%emt 0:00:38]} 40. Kf2 {[%emt 0:02:11]} Rf4 {[%emt 0:00:23]} 41. Kg2 {[%emt 0:30:05]} Nxf3 {[%emt 0:31:18]} 42. Rd1 {[%emt 0:00:59]} Nh4+ {[%emt 0:00:10]} 43. Kg1 {[%emt 0:00:05]} h5 {[%emt 0:01:18]} 44. b4 {[%emt 0:01:08]} Nf3+ {[%emt 0:01:11]} 45. Kg2 {[%emt 0:00:07]} Ne5 {[%emt 0:00:15]} 46. Rc1 {[%emt 0:02:00]} Re4 {[%emt 0:00:01]} 47. Rc3 {[%emt 0:00:07]} Ng4 {[%emt 0:01:39]} 48. Nf5 {[%emt 0:01:00]} Rf4 {[%emt 0:00:54]} 49. Ng7 {[%emt 0:00:09]} Nf6 {[%emt 0:01:28]} 50. Re3 {[%emt 0:00:08]} Kd7 {[%emt 0:00:49]} 51. Ra3 {[%emt 0:00:05]} Ke7 {[%emt 0:01:45]} 52. Ra5 {[%emt 0:00:03]} d5 {[%emt 0:00:00]} 53. h4 {[%emt 0:00:00]} gxh4 {[%emt 0:00:00]} 54. cxd5 {[%emt 0:00:00]} cxd5 {[%emt 0:00:00]} 55. Rxa7+ {[%emt 0:00:00]} Kf8 {[%emt 0:00:00]} 56. b5 {[%emt 0:00:00]} Kxg7 {[%emt 0:00:00]} 57. b6 {[%emt 0:00:00]} Rb4 {[%emt 0:00:00]} 58. b7 {[%emt 0:00:00]} Nd7 {[%emt 0:00:00]} 59. a4 {[%emt 0:00:00]} Nc5 {[%emt 0:00:00]} 60. a5 {[%emt 0:00:00]} Nxb7 {[%emt 0:00:00]} 61. Ra8 {[%emt 0:00:00]} Ra4 {[%emt 0:00:00]} 62. a6 {[%emt 0:00:00]} Nc5 {[%emt 0:00:00]} 63. a7 {[%emt 0:00:00]} Ne6 {[%emt 0:00:00]} 64. Kh3 {[%emt 0:00:00]} Nc7 {[%emt 0:00:00]} 65. Rd8 {[%emt 0:00:00]} Rxa7 {[%emt 0:00:00]} 66. Kxh4 {[%emt 0:00:00]} Kf6 {[%emt 0:00:00]} 67. Rd6+ {[%emt 0:00:00]} Ke5 {[%emt 0:00:00]} 68. Rd7 {[%emt 0:00:00]} f5 {[%emt 0:00:00]} 69. Kxh5 {[%emt 0:00:00]} d4 {[%emt 0:00:00]} 70. Kh4 {[%emt 0:00:00]} Ke4 {[%emt 0:00:00]} 71. Kg3 {[%emt 0:00:00]} Ra3+ {[%emt 0:00:00]} 72. Kf2 {[%emt 0:00:00]} Nd5 {[%emt 0:00:00]} 73. Rd8 {[%emt 0:00:00]} Ra2+ {[%emt 0:00:00]} 74. Kg3 {[%emt 0:00:00]} f4+ {[%emt 0:00:00]} 75. Kg4 {[%emt 0:00:00]} Rg2+ {[%emt 0:00:00]} 76. Kh4 {[%emt 0:00:00]} Nf6 {[%emt 0:00:00]} 77. Kh3 {[%emt 0:00:00]} Rg8 {[%emt 0:00:00]} 78. Rd6 {[%emt 0:00:00]} Kf3 {[%emt 0:00:00]} 79. Kh2 {[%emt 0:00:00]} Ng4+ {[%emt 0:00:00]} 80. Kg1 {[%emt 0:00:00]} Nf2+ {[%emt 0:00:00]} 81. Kf1 {[%emt 0:00:00]} Ra8 {[%emt 0:00:00]} 82. Ra6 {[%emt 0:00:00]} Rxa6 {[%emt 0:00:00]} 83. Kg1 {[%emt 0:00:00]} Ra1+ {[%emt 0:00:00]} 84. Kh2 {[%emt 0:00:00]} Rh1# 0-1

[Event "Sparkassen Open 2018"]
[Site "Heusenstamm"]
[Date "2018.11.25"]
[Round "6"]
[White "Bomans, Arno"]
[Black "Geske, Julian"]
[Result "1/2-1/2"]
[ECO "A45"]
[WhiteElo "2262"]
[BlackElo "2382"]
[Annotator "NA"]
[PlyCount "28"]
[EventDate "2018.11.22"]
[EventType "swiss"]
[EventCountry "GER"]
[SourceTitle "playchess.com"]
[Source "ChessBase"]
[SourceQuality "1"]
[TimeControl "40/5400+30:1800+30"]

{[%evp 13,24,24,20,21,35,5,10,2,12,0,24,-7,77]} 1. d4 {[%emt 0:00:28]} Nf6 {[%emt 0:00:00]} 2. Bg5 {[%emt 0:00:14]} e6 {[%emt 0:00:08]} 3. e4 {[%emt 0:00:30]} h6 {[%emt 0:00:08]} 4. Bxf6 {[%emt 0:00:31]} Qxf6 {[%emt 0:00:15]} 5. c3 {[%emt 0:00:23]} d6 {[%emt 0:00:34]} 6. Bd3 {[%emt 0:00:44]} e5 {[%emt 0:03:40]} 7. Ne2 {[%emt 0:01:21]} g6 {[%emt 0:03:18]} 8. O-O {[%emt 0:00:29]} Bg7 {[%emt 0:00:18]} 9. Nd2 {[%emt 0:01:10]} O-O {[%emt 0:00:36]} 10. f4 {[%emt 0:05:58]} Qe7 {[%emt 0:00:48]} 11. f5 {[%emt 0:03:15] LiveBook: 9 Games} exd4 {[%emt 0:12:46]} 12. fxg6 {[%emt 0:07:22]} Nc6 $16 {[%emt 0:15:42]} (12... dxc3 $11 {remains equal.} 13. Nxc3 Be6) 13. gxf7+ {[%emt 0:43:53]} Rxf7 {[%emt 0:00:45]} 14. Qb3 {[%emt 0:01:21]} Ne5 {[%emt 0:17:00]} 1/2-1/2